fUST/lending_fUST_20250601
["ID","MTS","AMOUNT","RATE_DAILY","PERIOD"]
[363565887,1748770242019,-430.0,0.00016986,2]
[363565889,1748770242031,-500.0,0.00016986,2]
[363565891,1748770242040,-450.72880569,0.00016986,2]
[363565893,1748770242049,-430.0,0.00016986,2]
[363565895,1748770242059,-151.0,0.00016986,2]
[363565897,1748770242068,-430.0,0.00016986,2]
[363565899,1748770242078,-614.97,0.00016986,2]
[363565900,1748770242087,-430.0,0.00016986,2]
[363565902,1748770242097,-430.0,0.00016986,2]
[363565904,1748770242107,-430.0,0.00016986,2]
[363565906,1748770242117,-430.0,0.00016986,2]
[363565908,1748770242126,-430.0,0.00016986,2]
[363565910,1748770242136,-430.0,0.00016986,2]
[363565912,1748770242145,-220.90035427,0.00016986,2]
[363565914,1748770242154,-430.0,0.00016986,2]
[363565915,1748770242164,-430.0,0.00016986,2]
[363565917,1748770242173,-430.0,0.00016986,2]
[363565919,1748770242183,-807.09,0.00016986,2]
[363565921,1748770242192,-430.0,0.00016986,2]
[363565923,1748770242202,-430.0,0.00016986,2]
[363565925,1748770242211,-430.0,0.00016986,2]
[363565927,1748770242223,-430.0,0.00016986,2]
[363565929,1748770242232,-430.0,0.00016986,2]
[363565930,1748770242243,-430.0,0.00016986,2]
[363565932,1748770242252,-430.0,0.00016986,2]
[363565934,1748770242261,-430.0,0.00016986,2]
[363565936,1748770242271,-615.76,0.00016986,2]
[363565938,1748770242280,-430.0,0.00016986,2]
[363565940,1748770242289,-430.0,0.00016986,2]
[363565942,1748770242299,-430.0,0.00016986,2]
[363565943,1748770242309,-1397.15,0.00016986,2]
[363565945,1748770242318,-430.0,0.00016986,2]
[363565947,1748770242328,-431.28351299,0.00016986,2]
[363565949,1748770242338,-430.0,0.00016986,2]
[363565951,1748770242347,-12878.56,0.00016986,2]
[363565953,1748770242356,-430.0,0.00016986,2]
[363565955,1748770242365,-430.0,0.00016986,2]
[363565956,1748770242374,-430.0,0.00016986,2]
[363565958,1748770242384,-592.13,0.00016986,2]
[363565960,1748770242393,-248.739943,0.00016986,2]
[363565962,1748770242403,-430.0,0.00016986,2]
[363565964,1748770242412,-1526.316205,0.00016986,2]
[363565966,1748770242422,-248.739943,0.00016986,2]
[363565968,1748770242431,-895.25,0.00016986,2]
[363565970,1748770242440,-1526.316205,0.00016986,2]
[363565972,1748770242450,-430.0,0.00016986,2]
[363565973,1748770242459,-430.0,0.00016986,2]
[363565975,1748770242469,-430.0,0.00016986,2]
[363565977,1748770242479,-430.0,0.00016986,2]
[363565979,1748770242488,-708.81,0.00016986,2]
[363565981,1748770242497,-430.0,0.00016986,2]
[363565983,1748770242507,-430.0,0.00016986,2]
[363565985,1748770242516,-430.0,0.00016986,2]
[363565986,1748770242525,-843.25276144,0.00017003,2]
[363565988,1748770242534,-509.80594734,0.00017006,2]
[363565990,1748770242543,-382.56540651,0.00017006,2]
[363565992,1748770242552,-502.66042553,0.0001702,2]
[363565994,1748770242562,-837.24713868,0.00017023,2]
[363565996,1748770242571,-500.0,0.00017033,2]
[363565998,1748770242580,-500.0,0.00017054,2]
[363566000,1748770242590,-2857.8,0.00017054,2]
[363566001,1748770242599,-2857.8,0.00017054,2]
[363566003,1748770242608,-501.76991613,0.00017111,2]
[363566005,1748770242619,-500.0,0.00017121,2]
[363566007,1748770242628,-151.0,0.00017228,2]
[363566009,1748770242638,-151.0,0.00017228,2]
[363566011,1748770242647,-151.0,0.00017228,2]
[363566013,1748770242657,-160.72977,0.00017228,2]
[363566015,1748770242666,-151.0,0.00017228,2]
[363566017,1748770242676,-531.055359,0.00017228,2]
[363566018,1748770242686,-531.055359,0.00017228,2]
[363566020,1748770242696,-359.960833,0.00017228,2]
[363566022,1748770242705,-359.960833,0.00017228,2]
[363566024,1748770242716,-151.0,0.0001726,2]
[363566026,1748770242725,-151.0,0.0001726,2]
[363566028,1748770242735,-151.0,0.0001726,2]
[363566030,1748770242745,-151.0,0.0001726,2]
[363566032,1748770242754,-151.0,0.0001726,2]
[363566033,1748770242763,-151.0,0.0001726,2]
[363566035,1748770242773,-430.0,0.0001726,2]
[363566037,1748770242783,-430.0,0.0001726,2]
[363566039,1748770242793,-430.0,0.0001726,2]
[363566041,1748770242802,-430.0,0.0001726,2]
[363566044,1748770242812,-430.0,0.0001726,2]
[363566046,1748770242821,-430.0,0.0001726,2]
[363566047,1748770242830,-430.0,0.0001726,2]
[363566049,1748770242840,-430.0,0.0001726,2]
[363566051,1748770242850,-303.52,0.0001726,2]
[363566053,1748770242859,-430.0,0.0001726,2]
[363566056,1748770242869,-430.0,0.0001726,2]
[363566059,1748770242878,-482.15,0.0001726,2]
[363566062,1748770242888,-430.0,0.0001726,2]
[363566064,1748770242897,-430.0,0.0001726,2]
[363566066,1748770242907,-430.0,0.0001726,2]
[363566068,1748770242916,-430.0,0.0001726,2]
[363566070,1748770242925,-430.0,0.0001726,2]
[363566072,1748770242935,-170.7,0.0001726,2]
[363566074,1748770242946,-151.0,0.0001726,2]
[363566076,1748770242960,-430.0,0.0001726,2]
[363566081,1748770242973,-534.72230835,0.0001726,2]
[363566084,1748770242984,-151.0,0.0001726,2]
[363566087,1748770242995,-265.44399174,0.0001726,2]
[363566090,1748770243005,-430.0,0.0001726,2]
[363566093,1748770243016,-430.0,0.0001726,2]
[363566097,1748770243028,-430.0,0.0001726,2]
[363566100,1748770243041,-430.0,0.0001726,2]
[363566102,1748770243051,-430.0,0.0001726,2]
[363566103,1748770243061,-430.0,0.0001726,2]
[363566104,1748770243070,-1703.33,0.0001726,2]
[363566105,1748770243079,-430.0,0.0001726,2]
[363566106,1748770243089,-430.0,0.0001726,2]
[363566107,1748770243099,-430.0,0.0001726,2]
[363566108,1748770243108,-430.0,0.0001726,2]
[363566109,1748770243117,-430.0,0.0001726,2]
[363566110,1748770243127,-430.0,0.0001726,2]
[363566111,1748770243139,-866.2,0.0001726,2]
[363566112,1748770243149,-430.0,0.0001726,2]
[363566113,1748770243158,-430.0,0.0001726,2]
[363566114,1748770243168,-1626.01,0.0001726,2]
[363566115,1748770243177,-430.0,0.0001726,2]
[363566116,1748770243187,-691.58,0.0001726,2]
[363566117,1748770243196,-687.88,0.0001726,2]
[363566118,1748770243207,-430.0,0.0001726,2]
[363566119,1748770243217,-1139.26,0.0001726,2]
[363566120,1748770243227,-430.0,0.0001726,2]
[363566121,1748770243237,-562.78,0.0001726,2]
[363566122,1748770243247,-503.99,0.0001726,2]
[363566123,1748770243257,-430.0,0.0001726,2]
[363566124,1748770243266,-430.0,0.0001726,2]
[363566125,1748770243275,-1378.54,0.0001726,2]
[363566126,1748770243285,-430.0,0.0001726,2]
[363566127,1748770243294,-430.0,0.0001726,2]
[363566128,1748770243305,-445.39267255,0.0001726,2]
[363566129,1748770243314,-430.0,0.0001726,2]
[363566130,1748770243324,-430.0,0.0001726,2]
[363566131,1748770243334,-430.0,0.0001726,2]
[363566132,1748770243343,-430.0,0.0001726,2]
[363566133,1748770243353,-430.0,0.0001726,2]
[363566134,1748770243363,-430.0,0.0001726,2]
[363566135,1748770243373,-500.0,0.0001726,2]
[363566136,1748770243383,-430.0,0.0001726,2]
[363566137,1748770243393,-430.0,0.0001726,2]
[363566138,1748770243402,-614.97,0.0001726,2]
[363566139,1748770243412,-430.0,0.0001726,2]
[363566140,1748770243421,-430.0,0.0001726,2]
[363566141,1748770243431,-430.0,0.0001726,2]
[363566142,1748770243440,-430.0,0.0001726,2]
[363566143,1748770243449,-430.0,0.0001726,2]
[363566144,1748770243459,-430.0,0.0001726,2]
[363566146,1748770243471,-359.64031325,0.0001726,2]
[363566147,1748770243480,-430.0,0.0001726,2]
[363566149,1748770243489,-430.0,0.0001726,2]
[363566150,1748770243498,-807.09,0.0001726,2]
[363566152,1748770243508,-430.0,0.0001726,2]
[363566153,1748770243517,-430.0,0.0001726,2]
[363566155,1748770243526,-430.0,0.0001726,2]
[363566157,1748770243535,-430.0,0.0001726,2]
[363566159,1748770243545,-430.0,0.0001726,2]
[363566161,1748770243555,-430.0,0.0001726,2]
[363566163,1748770243565,-449.4963616,0.0001726,2]
[363566165,1748770243574,-430.0,0.0001726,2]
[363566167,1748770243584,-615.76,0.0001726,2]
[363566169,1748770243594,-430.0,0.0001726,2]
[363566171,1748770243603,-430.0,0.0001726,2]
[363566173,1748770243612,-430.0,0.0001726,2]
[363566175,1748770243622,-1397.15,0.0001726,2]
[363566177,1748770243631,-155.4213844,0.0001726,2]
[363566179,1748770243640,-430.0,0.0001726,2]
[363566181,1748770243649,-12878.56,0.0001726,2]
[363566183,1748770243658,-430.0,0.0001726,2]
[363566185,1748770243668,-430.0,0.0001726,2]
[363566187,1748770243677,-430.0,0.0001726,2]
[363566189,1748770243687,-592.13,0.0001726,2]
[363566191,1748770243696,-248.739943,0.0001726,2]
[363566193,1748770243706,-429.85050634,0.0001726,2]
[363566195,1748770243718,-248.739943,0.0001726,2]
[363566197,1748770243727,-895.25,0.0001726,2]
[363566199,1748770243737,-430.0,0.0001726,2]
[363566201,1748770243747,-430.0,0.0001726,2]
[363566203,1748770243756,-430.0,0.0001726,2]
[363566205,1748770243766,-708.81,0.0001726,2]
[363566207,1748770243776,-430.0,0.0001726,2]
[363566209,1748770243785,-430.0,0.0001726,2]
[363566211,1748770243795,-430.0,0.0001726,2]
[363566213,1748770243804,-244.0,0.00017274,2]
[363566215,1748770243813,-843.25276144,0.00017279,2]
[363566217,1748770243823,-151.0,0.00017533,2]
[363566219,1748770243831,-152.509292,0.00017533,2]
[363566221,1748770243844,-151.0,0.00017533,2]
[363566223,1748770243854,-151.0,0.00017534,2]
[363566225,1748770243864,-151.0,0.00017534,2]
[363566227,1748770243873,-430.0,0.00017534,2]
[363566229,1748770243884,-510.0,0.00017534,2]
[363566231,1748770243893,-430.0,0.00017534,2]
[363566233,1748770243902,-430.0,0.00017534,2]
[363566235,1748770243912,-430.0,0.00017534,2]
[363566237,1748770243921,-430.0,0.00017534,2]
[363566239,1748770243930,-430.0,0.00017534,2]
[363566241,1748770243940,-482.15,0.00017534,2]
[363566243,1748770243951,-151.0,0.00017534,2]
[363566245,1748770243962,-151.0,0.00017534,2]
[363566247,1748770243973,-430.0,0.00017534,2]
[363566249,1748770243982,-430.0,0.00017534,2]
[363566252,1748770243994,-430.0,0.00017534,2]
[363566253,1748770244003,-1074.688167,0.00017534,2]
[363566255,1748770244012,-1074.688167,0.00017534,2]
[363566258,1748770244022,-430.0,0.00017534,2]
[363566259,1748770244035,-151.0,0.00017534,2]
[363566261,1748770244044,-430.0,0.00017534,2]
[363566263,1748770244054,-430.0,0.00017534,2]
[363566265,1748770244063,-430.0,0.00017534,2]
[363566267,1748770244073,-430.0,0.00017534,2]
[363566269,1748770244082,-1703.33,0.00017534,2]
[363566271,1748770244091,-154.741014,0.00017534,2]
[363566273,1748770244100,-430.0,0.00017534,2]
[363566275,1748770244109,-430.0,0.00017534,2]
[363566277,1748770244119,-430.0,0.00017534,2]
[363566279,1748770244128,-430.0,0.00017534,2]
[363566281,1748770244138,-430.0,0.00017534,2]
[363566283,1748770244147,-866.2,0.00017534,2]
[363566285,1748770244157,-430.0,0.00017534,2]
[363566287,1748770244167,-430.0,0.00017534,2]
[363566290,1748770244177,-1626.01,0.00017534,2]
[363566292,1748770244187,-430.0,0.00017534,2]
[363566294,1748770244197,-691.58,0.00017534,2]
[363566295,1748770244206,-687.88,0.00017534,2]
[363566308,1748770244313,-430.0,0.00017534,2]
[363566310,1748770244323,-1139.26,0.00017534,2]
[363566312,1748770244333,-430.0,0.00017534,2]
[363566314,1748770244342,-562.78,0.00017534,2]
[363566316,1748770244352,-503.99,0.00017534,2]
[363566318,1748770244361,-430.0,0.00017534,2]
[363566320,1748770244372,-151.0,0.00017534,2]
[363566322,1748770244382,-430.0,0.00017534,2]
[363566324,1748770244391,-1378.54,0.00017534,2]
[363566326,1748770244400,-430.0,0.00017534,2]
[363566328,1748770244410,-430.0,0.00017534,2]
[363566330,1748770244419,-430.0,0.00017534,2]
[363566332,1748770244429,-430.0,0.00017534,2]
[363566334,1748770244438,-430.0,0.00017534,2]
[363566336,1748770244448,-298.96,0.00017534,2]
[363566338,1748770244457,-430.0,0.00017534,2]
[363566340,1748770244467,-500.0,0.00017534,2]
[363566342,1748770244477,-151.0,0.00017534,2]
[363566344,1748770244486,-430.0,0.00017534,2]
[363566346,1748770244496,-430.0,0.00017534,2]
[363566348,1748770244505,-614.97,0.00017534,2]
[363566350,1748770244515,-430.0,0.00017534,2]
[363566352,1748770244524,-430.0,0.00017534,2]
[363566354,1748770244533,-430.0,0.00017534,2]
[363566356,1748770244543,-430.0,0.00017534,2]
[363566358,1748770244552,-430.0,0.00017534,2]
[363566360,1748770244562,-430.0,0.00017534,2]
[363566362,1748770244571,-430.0,0.00017534,2]
[363566364,1748770244581,-807.09,0.00017534,2]
[363566366,1748770244590,-430.0,0.00017534,2]
[363566368,1748770244600,-430.0,0.00017534,2]
[363566370,1748770244609,-430.0,0.00017534,2]
[363566372,1748770244618,-430.0,0.00017534,2]
[363566374,1748770244628,-430.0,0.00017534,2]
[363566376,1748770244638,-430.0,0.00017534,2]
[363566378,1748770244647,-430.0,0.00017534,2]
[363566380,1748770244657,-615.76,0.00017534,2]
[363566382,1748770244667,-430.0,0.00017534,2]
[363566384,1748770244677,-430.0,0.00017534,2]
[363566386,1748770244686,-1397.15,0.00017534,2]
[363566388,1748770244695,-430.0,0.00017534,2]
[363566390,1748770244705,-12878.56,0.00017534,2]
[363566392,1748770244714,-430.0,0.00017534,2]
[363566394,1748770244725,-430.0,0.00017534,2]
[363566396,1748770244735,-484.85705169,0.00017534,2]
[363566398,1748770244744,-592.13,0.00017534,2]
[363566400,1748770244754,-1526.316205,0.00017534,2]
[363566402,1748770244763,-895.25,0.00017534,2]
[363566404,1748770244772,-1526.316205,0.00017534,2]
[363566406,1748770244782,-437.55,0.00017534,2]
[363566408,1748770244791,-430.0,0.00017534,2]
[363566410,1748770244800,-430.0,0.00017534,2]
[363566412,1748770244811,-708.81,0.00017534,2]
[363566415,1748770244820,-430.0,0.00017534,2]
[363566417,1748770244830,-331.54265223,0.00017534,2]
[363566419,1748770244839,-843.25276144,0.00017555,2]
[363566420,1748770244848,-1000.0,0.00017581,2]
[363566422,1748770244858,-837.24713868,0.00017708,2]
[363566424,1748770244868,-215.0738,0.00017796,2]
[363566426,1748770244877,-1355.58,0.00017798,3]
[363566428,1748770244887,-677.8,0.00017798,3]
[363566431,1748770244896,-338.9,0.00017798,3]
[363566433,1748770244906,-151.0,0.00017807,2]
[363566435,1748770244915,-151.0,0.00017807,2]
[363566437,1748770244925,-151.0,0.00017807,2]
[363566439,1748770244934,-151.0,0.00017808,2]
[363566441,1748770244944,-188.55716752,0.00017808,2]
[363566442,1748770244957,-430.0,0.00017808,2]
[363566445,1748770244968,-430.0,0.00017808,2]
[363566447,1748770244977,-151.0,0.00017808,2]
[363566448,1748770244988,-430.0,0.00017808,2]
[363566451,1748770244998,-158.92,0.00017808,2]
[363566452,1748770245008,-482.15,0.00017808,2]
[363566455,1748770245019,-430.0,0.00017808,2]
[363566456,1748770245030,-430.0,0.00017808,2]
[363566458,1748770245040,-151.0,0.00017808,2]
[363566461,1748770245050,-151.0,0.00017808,2]
[363566463,1748770245060,-430.0,0.00017808,2]
[363566465,1748770245069,-430.0,0.00017808,2]
[363566467,1748770245078,-430.0,0.00017808,2]
[363566469,1748770245087,-151.0,0.00017808,2]
[363566471,1748770245097,-430.0,0.00017808,2]
[363566473,1748770245106,-1703.33,0.00017808,2]
[363566475,1748770245117,-151.0,0.00017808,2]
[363566476,1748770245126,-430.0,0.00017808,2]
[363566479,1748770245136,-151.0,0.00017808,2]
[363566481,1748770245146,-430.0,0.00017808,2]
[363566483,1748770245156,-430.0,0.00017808,2]
[363566485,1748770245166,-430.0,0.00017808,2]
[363566487,1748770245176,-430.0,0.00017808,2]
[363566489,1748770245186,-866.2,0.00017808,2]
[363566491,1748770245196,-430.0,0.00017808,2]
[363566493,1748770245205,-430.0,0.00017808,2]
[363566495,1748770245215,-1626.01,0.00017808,2]
[363566497,1748770245225,-691.58,0.00017808,2]
[363566499,1748770245235,-687.88,0.00017808,2]
[363566501,1748770245244,-430.0,0.00017808,2]
[363566503,1748770245254,-1139.26,0.00017808,2]
[363566505,1748770245263,-430.0,0.00017808,2]
[363566507,1748770245273,-562.78,0.00017808,2]
[363566509,1748770245282,-503.99,0.00017808,2]
[363566511,1748770245292,-430.0,0.00017808,2]
[363566513,1748770245302,-430.0,0.00017808,2]
[363566515,1748770245312,-1378.54,0.00017808,2]
[363566517,1748770245322,-430.0,0.00017808,2]
[363566519,1748770245331,-430.0,0.00017808,2]
[363566521,1748770245340,-430.0,0.00017808,2]
[363566523,1748770245349,-430.0,0.00017808,2]
[363566525,1748770245359,-398.03672369,0.00017808,2]
[363566527,1748770245368,-500.0,0.00017808,2]
[363566529,1748770245377,-430.0,0.00017808,2]
[363566531,1748770245386,-151.0,0.00017808,2]
[363566533,1748770245396,-430.0,0.00017808,2]
[363566535,1748770245406,-614.97,0.00017808,2]
[363566537,1748770245415,-430.0,0.00017808,2]
[363566539,1748770245425,-430.0,0.00017808,2]
[363566541,1748770245435,-430.0,0.00017808,2]
[363566543,1748770245445,-430.0,0.00017808,2]
[363566545,1748770245456,-430.0,0.00017808,2]
[363566547,1748770245466,-430.0,0.00017808,2]
[363566549,1748770245476,-430.0,0.00017808,2]
[363566551,1748770245485,-807.09,0.00017808,2]
[363566553,1748770245495,-430.0,0.00017808,2]
[363566555,1748770245505,-430.0,0.00017808,2]
[363566557,1748770245514,-430.0,0.00017808,2]
[363566559,1748770245524,-430.0,0.00017808,2]
[363566561,1748770245534,-430.0,0.00017808,2]
[363566563,1748770245544,-430.0,0.00017808,2]
[363566565,1748770245553,-430.0,0.00017808,2]
[363566567,1748770245563,-615.76,0.00017808,2]
[363566569,1748770245573,-430.0,0.00017808,2]
[363566571,1748770245583,-430.0,0.00017808,2]
[363566573,1748770245592,-1397.15,0.00017808,2]
[363566575,1748770245602,-12878.56,0.00017808,2]
[363566577,1748770245611,-430.0,0.00017808,2]
[363566579,1748770245621,-430.0,0.00017808,2]
[363566581,1748770245631,-430.0,0.00017808,2]
[363566583,1748770245640,-531.055359,0.00017808,2]
[363566585,1748770245650,-592.13,0.00017808,2]
[363566587,1748770245659,-248.739943,0.00017808,2]
[363566589,1748770245669,-531.055359,0.00017808,2]
[363566592,1748770245679,-248.739943,0.00017808,2]
[363566593,1748770245689,-359.960833,0.00017808,2]
[363566596,1748770245699,-895.25,0.00017808,2]
[363566598,1748770245709,-359.960833,0.00017808,2]
[363566600,1748770245718,-430.0,0.00017808,2]
[363566602,1748770245729,-430.0,0.00017808,2]
[363566604,1748770245738,-708.81,0.00017808,2]
[363566606,1748770245748,-430.0,0.00017808,2]
[363566608,1748770245757,-151.0,0.00017831,2]
[363566610,1748770245767,-843.25276144,0.00017831,2]
[363566612,1748770245776,-420.0,0.00017952,2]
[363566614,1748770245786,-500.0,0.00018022,2]
[363566616,1748770245796,-164.96506702,0.00018081,2]
[363566618,1748770245806,-295.614906,0.00018082,2]
[363566619,1748770245815,-151.0,0.00018082,2]
[363566622,1748770245825,-151.0,0.00018082,2]
[363566624,1748770245834,-151.0,0.00018082,2]
[363566626,1748770245843,-151.80746,0.00018082,2]
[363566629,1748770245853,-155.030959,0.00018082,2]
[363566631,1748770245863,-151.0,0.00018082,2]
[363566636,1748770245872,-603.885838,0.00018082,2]
[363566637,1748770245882,-603.885838,0.00018082,2]
[363566640,1748770245891,-430.0,0.00018082,2]
[363566642,1748770245901,-430.0,0.00018082,2]
[363566644,1748770245911,-192.102102,0.00018082,2]
[363566647,1748770245920,-192.102102,0.00018082,2]
[363566649,1748770245930,-430.0,0.00018082,2]
[363566651,1748770245940,-169.196033,0.00018082,2]
[363566653,1748770245952,-169.196033,0.00018082,2]
[363566655,1748770245962,-151.0,0.00018082,2]
[363566657,1748770245972,-151.0,0.00018082,2]
[363566659,1748770245983,-482.15,0.00018082,2]
[363566661,1748770245993,-430.0,0.00018082,2]
[363566663,1748770246002,-151.354798,0.00018082,2]
[363566665,1748770246011,-151.0,0.00018082,2]
[363566667,1748770246021,-151.0,0.00018082,2]
[363566669,1748770246032,-151.0,0.00018082,2]
[363566672,1748770246042,-430.0,0.00018082,2]
[363566674,1748770246052,-430.0,0.00018082,2]
[363566676,1748770246062,-151.0,0.00018082,2]
[363566678,1748770246072,-211.80361192,0.00018082,2]
[363566679,1748770246082,-430.0,0.00018082,2]
[363566682,1748770246092,-1703.33,0.00018082,2]
[363566684,1748770246102,-430.0,0.00018082,2]
[363566686,1748770246112,-430.0,0.00018082,2]
[363566688,1748770246121,-430.0,0.00018082,2]
[363566690,1748770246131,-430.0,0.00018082,2]
[363566692,1748770246141,-866.2,0.00018082,2]
[363566694,1748770246150,-430.0,0.00018082,2]
[363566695,1748770246159,-430.0,0.00018082,2]
[363566697,1748770246169,-1626.01,0.00018082,2]
[363566699,1748770246179,-691.58,0.00018082,2]
[363566701,1748770246189,-687.88,0.00018082,2]
[363566703,1748770246198,-430.0,0.00018082,2]
[363566705,1748770246208,-1139.26,0.00018082,2]
[363566707,1748770246217,-430.0,0.00018082,2]
[363566710,1748770246227,-562.78,0.00018082,2]
[363566712,1748770246236,-503.99,0.00018082,2]
[363566714,1748770246246,-430.0,0.00018082,2]
[363566716,1748770246255,-430.0,0.00018082,2]
[363566718,1748770246266,-1378.54,0.00018082,2]
[363566719,1748770246277,-430.0,0.00018082,2]
[363566721,1748770246287,-430.0,0.00018082,2]
[363566723,1748770246296,-430.0,0.00018082,2]
[363566726,1748770246307,-430.0,0.00018082,2]
[363566728,1748770246318,-430.0,0.00018082,2]
[363566730,1748770246328,-430.0,0.00018082,2]
[363566732,1748770246338,-614.97,0.00018082,2]
[363566734,1748770246348,-430.0,0.00018082,2]
[363566736,1748770246357,-430.0,0.00018082,2]
[363566738,1748770246367,-430.0,0.00018082,2]
[363566740,1748770246378,-430.0,0.00018082,2]
[363566742,1748770246389,-430.0,0.00018082,2]
[363566744,1748770246398,-430.0,0.00018082,2]
[363566746,1748770246408,-807.09,0.00018082,2]
[363566748,1748770246417,-430.0,0.00018082,2]
[363566750,1748770246427,-430.0,0.00018082,2]
[363566752,1748770246437,-430.0,0.00018082,2]
[363566754,1748770246445,-430.0,0.00018082,2]
[363566756,1748770246455,-430.0,0.00018082,2]
[363566758,1748770246464,-430.0,0.00018082,2]
[363566760,1748770246475,-615.76,0.00018082,2]
[363566761,1748770246484,-430.0,0.00018082,2]
[363566763,1748770246494,-430.0,0.00018082,2]
[363566765,1748770246503,-1397.15,0.00018082,2]
[363566767,1748770246513,-12878.56,0.00018082,2]
[363566779,1748770246615,-430.0,0.00018082,2]
[363566781,1748770246626,-430.0,0.00018082,2]
[363566783,1748770246636,-430.0,0.00018082,2]
[363566785,1748770246645,-592.13,0.00018082,2]
[363566787,1748770246654,-895.25,0.00018082,2]
[363566789,1748770246663,-430.0,0.00018082,2]
[363566791,1748770246673,-708.81,0.00018082,2]
[363566793,1748770246683,-430.0,0.00018082,2]
[363566795,1748770246693,-430.0,0.00018082,2]
[363566797,1748770246702,-843.25276144,0.00018107,2]
[363566799,1748770246711,-1510.46320827,0.00018129,2]
[363566801,1748770246723,-1195.8619859,0.00018192,2]
[363566803,1748770246734,-319.1604193,0.00018192,2]
[363566805,1748770246743,-153.0,0.00018192,2]
[363566808,1748770246752,-153.0,0.00018192,2]
[363566811,1748770246762,-153.0,0.00018192,2]
[363566814,1748770246772,-153.0,0.00018192,2]
[363566816,1748770246782,-153.0,0.00018192,2]
[363566818,1748770246791,-153.0,0.00018192,2]
[363566820,1748770246800,-153.0,0.00018192,2]
[363566822,1748770246810,-153.0,0.00018192,2]
[363566824,1748770246820,-151.0,0.00018244,2]
[363566826,1748770246829,-1320.064837,0.00018257,2]
[363566828,1748770246839,-587.0,0.00018323,2]
[363566829,1748770246849,-832.28,0.00018349,2]
[363566830,1748770246859,-151.0,0.00018356,2]
[363566831,1748770246869,-151.0,0.00018356,2]
[363566832,1748770246879,-151.0,0.00018356,2]
[363566833,1748770246888,-430.0,0.00018356,2]
[363566834,1748770246898,-430.0,0.00018356,2]
[363566835,1748770246908,-482.15,0.00018356,2]
[363566836,1748770246917,-151.0,0.00018356,2]
[363566837,1748770246928,-151.0,0.00018356,2]
[363566838,1748770246938,-247.18686087,0.00018356,2]
[363566839,1748770246949,-1074.688167,0.00018356,2]
[363566840,1748770246962,-1074.688167,0.00018356,2]
[363566841,1748770246974,-151.512162,0.00018356,2]
[363566842,1748770246984,-430.0,0.00018356,2]
[363566843,1748770246996,-430.0,0.00018356,2]
[363566844,1748770247006,-1703.33,0.00018356,2]
[363566845,1748770247016,-430.0,0.00018356,2]
[363566846,1748770247026,-430.0,0.00018356,2]
[363566847,1748770247036,-430.0,0.00018356,2]
[363566848,1748770247046,-866.2,0.00018356,2]
[363566849,1748770247057,-430.0,0.00018356,2]
[363566850,1748770247066,-561.23624456,0.00018356,2]
[363566852,1748770247076,-1626.01,0.00018356,2]